Cogmind - Beta 11.1 @@@ ROGUE MODE // 2022.10.04 @ 20:10:46 Player: DuckBoy Result: Escaped! Performance ------------- Evolutions (9) 4500 Regions Visited (22) 4400 Robots Destroyed (125) 625 Value Destroyed (5620) 5620 Prototype IDs (47) 940 Alien Tech Used (6) 1200 Bonus (21297) 21297 TOTAL SCORE: 38582 Bonus ------- High Alert Combat Kills 167 Follower Combat Kills 20 Met Zhirov 300 Met Warlord at Base 500 MAIN.C Attacked Warlord 500 Hacked Protovariant 500 Met Warlord at Research 2000 Scanned by Researcher 500 Acquired SGEMP 2000 Delivered SGEMP 2000 Met MAIN.C 5000 Destroyed MAIN.C Shell 5000 Win 3000 Friendly Fire -190 Cogmind --------- Core Integrity 212/1600 Matter 198/300 Energy 100/100 System Corruption 54% Temperature Cool (1) Movement Flying (35) Location To Epsilon Eridani Parts ------- > --- POWER (3) -------- (None) > --- PROPULSION (12) -- Electron Diverter > --- UTILITY (8) ------ Spectral Analyzer Graphene Brace System Shield > --- WEAPON (2) ------- (None) > --- INVENTORY (5) ---- Cooled Impulse Thruster Vortex Driver (10) Compact Tesla Bomb Launcher Z-bomb Delivery System Peak State ------------ > --- POWER ------------ Light Quantum Reactor Light Quantum Reactor Improved Quantum Reactor > --- PROPULSION ------- Biometal Heavy Treads Biometal Heavy Treads Biometal Heavy Treads Biometal Heavy Treads Impulse Thruster Cooled Field Propulsion Drive Electron Diverter Electron Diverter > --- UTILITY ---------- Spectral Analyzer Experimental Core Analyzer Experimental Weapon Shielding Graphene Brace AEGIS Remote Shield Hacking Suite Advanced Hacking Suite System Shield > --- WEAPON ----------- Multirail Z-bomb Delivery System > --- INVENTORY -------- Cooled Impulse Thruster Cooled Proton Cannon Vortex Driver Heavy Gauss Cannon Compact Tesla Bomb Launcher [Rating: 217] Favorites ----------- Power Vortex Chain Reactor Engine Light Ion Engine Power Core Light Nuclear Core Reactor Vortex Chain Reactor Propulsion VTOL Module Treads Biometal Heavy Treads Leg Carbon-fiber Leg Wheel Wheel Hover Unit Aerolev Unit Flight Unit VTOL Module Utility Spectral Analyzer Device Advanced Cooling System Storage Small Storage Unit Processor Spectral Analyzer Hackware Advanced Hacking Suite Protection Centrium Medium Armor Plating Artifact Phase Armor Weapon Heavy Hammer Energy Gun Medium Laser Energy Cannon Vortex Driver Ballistic Gun Multirail Ballistic Cannon Compact Mass Driver Launcher Compact Tesla Bomb Launcher Impact Weapon Heavy Hammer Piercing Weapon Enhanced Force Lance Build | -11 -10 -9 -8 -7 -7 -6 -5 -5 -5 -5 -4 -4 -4 -4 -4 -3 -3 -3 -2 -2 -1 -1 ------- Run | Scr Mat Mat Mat Fac Low Fac Fac Upp Upp War Pro Fac Upp Upp Zhi Pro Res Tes Res Qua Acc Com Slots Evolved 18 | . . 2 2 2 . 2 2 . . . . 2 . . . . 2 . 2 . 2 . Power 2 | . . . . 1 . 1 . . . . . . . . . . . . . . . . Propulsion 10 | . . 2 2 1 . 1 2 . . . . . . . . . 1 . . . 1 . Utility 6 | . . . . . . . . . . . . 2 . . . . 1 . 2 . 1 . Weapon . | . . . . . . . . . . . . . . . . . . . . . . . Parts Attached 194 | 6 2 10 8 30 2 10 3 5 . 17 . 2 2 . 4 2 2 23 23 10 5 28 Power 18 | 1 . . . 4 . 3 . . . 3 . . . . . . . 1 1 1 . 4 Engine 8 | 1 . . . 2 . 3 . . . 2 . . . . . . . . . . . . Core 2 | . . . . 2 . . . . . . . . . . . . . . . . . . Reactor 8 | . . . . . . . . . . 1 . . . . . . . 1 1 1 . 4 Propulsion 72 | 2 . 7 7 20 1 3 1 3 . 4 . . . . . . 1 5 10 . . 8 Treads 16 | . . 3 2 7 . . . . . . . . . . . . . . . . . 4 Leg 2 | . . . . 2 . . . . . . . . . . . . . . . . . . Wheel 10 | 2 . 4 2 2 . . . . . . . . . . . . . . . . . . Hover 3 | . . . 2 1 . . . . . . . . . . . . . . . . . . Flight 41 | . . . 1 8 1 3 1 3 . 4 . . . . . . 1 5 10 . . 4 Utility 60 | 1 2 . . 4 1 4 1 . . 5 . 2 1 . 4 2 1 9 7 9 3 4 Device 40 | . 1 . . 4 1 4 1 . . 3 . 2 1 . 2 2 . 8 3 7 1 . Storage 1 | 1 . . . . . . . . . . . . . . . . . . . . . . Processor 6 | . 1 . . . . . . . . 1 . . . . . . . . 2 . 1 1 Hackware 6 | . . . . . . . . . . 1 . . . . . . 1 . 2 . 1 1 Protection 5 | . . . . . . . . . . . . . . . 2 . . 1 . . . 2 Artifact 2 | . . . . . . . . . . . . . . . . . . . . 2 . . Weapon 44 | 2 . 3 1 2 . . 1 2 . 5 . . 1 . . . . 8 5 . 2 12 Energy Gun 7 | 2 . . . . . . . 2 . 2 . . . . . . . 1 . . . . Energy Cannon 6 | . . . . . . . . . . 1 . . . . . . . 1 1 . . 3 Ballistic Gun 1 | . . . . . . . . . . . . . . . . . . . . . . 1 Ballistic Cannon 4 | . . . . . . . . . . . . . . . . . . . . . . 4 Launcher 14 | . . . . . . . . . . . . . . . . . . 5 4 . 1 4 Special Weapon . | . . . . . . . . . . . . . . . . . . . . . . . Impact Weapon 11 | . . 3 1 2 . . 1 . . 2 . . 1 . . . . 1 . . . . Slashing Weapon . | . . . . . . . . . . . . . . . . . . . . . . . Piercing Weapon 1 | . . . . . . . . . . . . . . . . . . . . . 1 . Special Melee Weapon . | . . . . . . . . . . . . . . . . . . . . . . . Unidentified Prototypes 36 | . . . 1 1 . 1 . . . 9 . . . . 2 1 . 9 1 4 . 7 Corrupted Parts 9 | . . 2 1 2 . . . 1 . . . . . . . . . . . . . 3 System Corruption 53 | . . 14 6 5 . . . 1 . . . . . . . . . . . . . 27 Parts Lost 73 | . . 5 2 20 . 3 . 3 . . . . . . . 1 . 5 3 . 2 29 Power 9 | . . 1 . 2 . 1 . . . . . . . . . . . . . . . 5 Propulsion 42 | . . 4 2 11 . 2 . 3 . . . . . . . 1 . 5 2 . . 12 Utility 15 | . . . . 4 . . . . . . . . . . . . . . 1 . 2 8 Weapon 7 | . . . . 3 . . . . . . . . . . . . . . . . . 4 Highest Loss Streak 13 | . . 3 2 11 . 2 . 3 . . . . . . . 1 . 4 2 . 2 13 To Critical Strikes . | . . . . . . . . . . . . . . . . . . . . . . . Average Slot Usage (%) 74 | . 95 73 83 59 70 74 70 64 64 72 88 84 89 89 89 85 84 78 76 81 74 72 Engine 5 | . 14 7 . 1 15 14 17 13 11 7 5 5 5 5 5 5 4 . . . . . Reactor 2 | . . . . . . . . . . 2 5 5 5 5 5 5 4 5 5 7 8 7 Treads 4 | . . 6 18 9 . . . . . . . . . . . . . . . . . 11 Wheel 5 | . 28 14 10 11 . . . . . . . . . . . . . . . . . . Hover 1 | . . . 14 4 . . . . . . . . . . . . . . . . . . Flight 24 | . . . 4 4 31 40 35 32 35 43 58 52 52 52 52 48 46 39 35 34 32 18 Device 9 | . 9 11 9 7 15 13 11 11 11 4 . 5 10 10 10 9 9 9 11 12 14 9 Processor 5 | . 7 11 9 3 . . . . . 2 5 5 5 5 5 5 4 4 5 4 7 9 Hackware 4 | . . . . . . . . . . 2 5 5 5 5 5 5 9 9 10 13 9 10 Energy Gun 2 | . 28 6 . . . . . 1 5 2 . . . . . . . . . . . . Impact Weapon 6 | . . 15 16 11 7 6 5 3 . 2 5 5 5 5 5 5 4 3 4 4 2 . Naked Turns . | . . . . . . . . . . . . . . . . . . . . . . . Heaviest Build 95 | 14 15 12 7 13 11 28 30 30 23 42 41 44 45 45 45 45 45 73 76 76 79 95 Greatest Support 300 | 32 32 60 20 70 21 35 31 32 28 52 52 52 52 52 52 52 55 81 79 79 79 300 Greatest Overweight (x) 2 | . . 2 . 2 . . . . . . . . . . . . . 1 . . . 1 Average Overweight (x) . | . . . . . . . . . . . . . . . . . . . . . . . Largest Inventory Capacity 8 | 8 8 5 5 5 5 5 5 5 5 5 5 5 5 5 5 5 5 5 5 5 5 5 Average Capacity 5 | 7 6 5 5 5 5 5 5 5 5 5 5 5 5 5 5 5 5 5 5 5 5 5 Most Carried 5 | . 1 5 5 5 3 5 5 5 5 5 5 4 5 5 5 5 3 5 5 5 4 5 Average Carried 4 | . . 4 3 3 3 4 4 4 5 4 5 3 3 5 4 4 3 4 4 4 3 4 Final Capacity 8 | 8 5 5 5 5 5 5 5 5 5 5 5 5 5 5 5 5 5 5 5 5 5 5 Final Carried 5 | . 1 5 3 3 3 4 5 5 5 5 5 3 5 5 5 4 3 5 5 5 4 4 Class Distribution -------------------- 23% | Mutant 18% | Hacker-Sprinter 14% | Generator-Sprinter 14% | Scavenger-Sprinter 11% | Scavenger-Mutant 8% | Hacker-Mutant 7% | Sprinter Dominant Class ---------------- Mutant | -10/Materials Mutant | -9/Materials Scavenger-Mutant | -8/Materials Mutant | -7/Factory Scavenger-Sprinter | -7/Lower Caves Scavenger-Sprinter | -6/Factory Sprinter | -5/Factory Scavenger-Sprinter | -5/Upper Caves Scavenger-Sprinter | -5/Upper Caves Scavenger-Sprinter | -5/Warlord Scavenger-Sprinter | -4/Proximity Caves Generator-Sprinter | -4/Factory Generator-Sprinter | -4/Upper Caves Generator-Sprinter | -4/Upper Caves Generator-Sprinter | -4/Zhirov Generator-Sprinter | -3/Proximity Caves Hacker-Sprinter | -3/Research Hacker-Sprinter | -3/Testing Hacker-Sprinter | -2/Research Hacker-Sprinter | -2/Quarantine Generator-Sprinter | -1/Access Hacker-Mutant | -1/Command Resources | -11 -10 -9 -8 -7 -7 -6 -5 -5 -5 -5 -4 -4 -4 -4 -4 -3 -3 -3 -2 -2 -1 -1 ----------- Run | Scr Mat Mat Mat Fac Low Fac Fac Upp Upp War Pro Fac Upp Upp Zhi Pro Res Tes Res Qua Acc Com Matter Collected 3704 | 163 117 95 70 298 40 67 58 40 . 20 32 33 72 53 . 50 50 335 565 110 109 1327 Remotely . | . . . . . . . . . . . . . . . . . . . . . . . Salvage Created 4707 | . 386 754 311 808 . 176 238 94 . . . 33 . 25 . . 72 242 437 175 . 956 Parts 148 | . 22 33 4 22 . 11 13 9 . . . . . . . . . 1 20 5 . 8 Haulers Intercepted 9 | . 2 2 1 1 . . 2 . . . . . . . . . . . 1 . . . Recyclers Shooed 3 | . 1 1 . . . . . . . . . . . . . . . 1 . . . . Parts Field Recycled . | . . . . . . . . . . . . . . . . . . . . . . . Retrieved Matter . | . . . . . . . . . . . . . . . . . . . . . . . Parts Self-Destructed 11 | . . . . . 2 . . 9 . . . . . . . . . . . . . . Prevented 7 | . . . . . . . . 2 . . . . . 5 . . . . . . . . Kills | -11 -10 -9 -8 -7 -7 -6 -5 -5 -5 -5 -4 -4 -4 -4 -4 -3 -3 -3 -2 -2 -1 -1 ------- Run | Scr Mat Mat Mat Fac Low Fac Fac Upp Upp War Pro Fac Upp Upp Zhi Pro Res Tes Res Qua Acc Com Combat Hostiles Destroyed 65 | . 4 11 4 16 . 2 . 4 . . . . . . . . . 3 9 . 1 11 Melee 17 | . . 3 1 9 . 2 . . . . . . . . . . . . 1 . . 1 Guns 11 | . 3 4 . . . . . 3 . . . . . . . . . . . . . 1 Cannons 6 | . . . . . . . . . . . . . . . . . . . . . . 6 AOE 18 | . 1 . . 1 . . . 1 . . . . . . . . . 3 8 . 1 3 Classes Destroyed 17 | . 5 6 1 2 . . . . . . . . . . . . . 1 . . . 2 Worker 19 | . 2 5 . 2 . . 1 . . . . . . . . . . 2 6 1 . . Builder 3 | . . 1 . 2 . . . . . . . . . . . . . . . . . . Tunneler 2 | . 1 1 . . . . . . . . . . . . . . . . . . . . Hauler 9 | . 2 2 1 1 . . 2 . . . . . . . . . . . 1 . . . Recycler 5 | . . 2 1 1 . . . . . . . . . . . . . 1 . . . . Mechanic 1 | . . 1 . . . . . . . . . . . . . . . . . . . . Operator 4 | . . 2 . . . 1 1 . . . . . . . . . . . . . . . Drone 3 | . . . . . . . . . . . . . . . . . . . . . . 3 Watcher 16 | . 3 2 1 2 . 1 1 . . . . 1 . . . . 2 1 1 . . 1 Swarmer 20 | . . 7 . 2 . . . 4 . . . . . . . . . 3 4 . . . Grunt 20 | . 4 1 . 11 . . . . . . . . . . . . . . 4 . . . Brawler 1 | . . . . 1 . . . . . . . . . . . . . . . . . . Researcher 4 | . . . . . . . . . . . . . . . . . . 2 . 2 . . Sentry 5 | . . 3 2 . . . . . . . . . . . . . . . . . . . Hunter 5 | . . . 2 . . 2 . . . . . . . . . . . . . . 1 . Programmer 3 | . . . . 2 . . . . . . . . . . . . . . 1 . . . Enhanced Q-Series 7 | . . . . . . . . . . . . . . . . . . . . . . 7 Best Kill Streak 7 | . 3 7 3 5 . 2 4 4 . . . 1 . . . . 2 4 6 2 1 3 Combat Bots Only 5 | . 2 3 1 5 . 2 . 4 . . . . . . . . . 3 4 . 1 3 Max Kills in Single Turn 4 | . 2 2 1 1 . 1 1 1 . . . 1 . . . . 1 3 4 1 1 3 Gunslinging . | . . . . . . . . . . . . . . . . . . . . . . . Exploded 4 | . 1 . . 1 . . . 1 . . . . . . . . . 3 4 . 1 3 Melee 1 | . . 1 1 1 . 1 . . . . . . . . . . . . 1 . . 1 Uniques/NPCs Destroyed 1 | . . . . . . . . . . . . . . . . . . . . . . 1 MAIN.C Shell (-1/Command) Combat | -11 -10 -9 -8 -7 -7 -6 -5 -5 -5 -5 -4 -4 -4 -4 -4 -3 -3 -3 -2 -2 -1 -1 -------- Run | Scr Mat Mat Mat Fac Low Fac Fac Upp Upp War Pro Fac Upp Upp Zhi Pro Res Tes Res Qua Acc Com Damage Taken 11377 | . 87 449 441 2634 . 165 . 190 . 19 . . 76 23 . 129 . 402 210 77 71 6404 Core 2353 | . 10 124 91 537 . 65 . 33 . . . . . 23 . . . 47 25 10 13 1375 Absorbed by Shields 3865 | . . . . . . 19 . . . . . . . . . 53 . . 202 74 70 3447 Reduced by Siege Mode 169 | . . . . . . . . . . . . . . . . . . . . . . 169 Redirected to Shielding 44 | . . . . . . . . . . . . . . . . . . . . . . 44 Core Remaining (%) 77 | 100 96 69 83 . 23 92 . . . . 96 . . . . 91 . 96 . 97 . 13 Volleys Fired 130 | . 29 13 . . . . . 5 . 1 . . . . . . . 2 14 3 1 62 Largest 2 | . 2 2 . . . . . 1 . 1 . . . . . . . 1 1 1 1 2 Hottest 111 | . 90 90 . . . . . 60 . 65 . . . . . . . 30 100 49 30 111 Shots Fired 185 | . 58 24 . . . . . 5 . 1 . . . . . . . 2 14 3 1 77 Gun 122 | . 58 24 . . . . . 5 . 1 . . . . . . . . . . . 34 Cannon 40 | . . . . . . . . . . . . . . . . . . . 5 . . 35 Launcher 23 | . . . . . . . . . . . . . . . . . . 2 9 3 1 8 Special . | . . . . . . . . . . . . . . . . . . . . . . . Kinetic 57 | . . . . . . . . . . . . . . . . . . . . . . 57 Thermal 40 | . 29 11 . . . . . . . . . . . . . . . . . . . . Explosive 13 | . . . . . . . . . . . . . . . . . . 2 2 . 1 8 Electromagnetic 62 | . 29 13 . . . . . 5 . 1 . . . . . . . . 7 3 . 4 Entropic 13 | . . . . . . . . . . . . . . . . . . . 5 . . 8 Robot Hit Streak 41 | . 14 5 . . . . . 6 . . . . . . . . . 1 4 . . 41 Robot Miss Streak 2 | . 2 2 . . . . . 1 . . . . . . . . . 1 1 . 1 2 Penetration Max 1 | . . . . . . . . . . . . . . . . . . . . . . 1 Secondary Targets . | . . . . . . . . . . . . . . . . . . . . . . . Shots Hit Robots 328 | . 40 52 18 88 . 8 6 4 . . . 1 . 1 . 1 2 6 19 3 . 79 Core Hits 144 | . 16 15 1 17 . 3 3 4 . . . . . . . . . 2 19 5 1 58 Critical Kills 7 | . . 2 1 3 . . . . . . . . . . . . . . 1 . . . Critical Parts Destroyed 24 | . . 3 2 12 . 1 2 . . . . . . . . . . 1 1 . . 2 Critical Strikes 46 | . 5 7 3 16 . 1 2 . . . . . . . . . . 1 3 . . 8 Burn 5 | . 5 . . . . . . . . . . . . . . . . . . . . . Destroy 3 | . . . . . . . . . . . . . . . . . . . . . . 3 Blast 2 | . . . . . . . . . . . . . . . . . . . . . . 2 Corrupt 1 | . . 1 . . . . . . . . . . . . . . . . . . . . Smash 31 | . . 6 3 16 . 1 2 . . . . . . . . . . 1 2 . . . Impale 2 | . . . . . . . . . . . . . . . . . . . . . . 2 Sunder 2 | . . . . . . . . . . . . . . . . . . . 1 . . 1 Melee Attacks 429 | . . 57 19 136 . 34 21 . . 3 1 7 4 7 . 5 22 42 22 19 13 17 Impact 407 | . . 57 19 136 . 34 21 . . 3 1 7 4 7 . 5 22 42 22 19 8 . Slashing . | . . . . . . . . . . . . . . . . . . . . . . . Piercing 22 | . . . . . . . . . . . . . . . . . . . . . 5 17 Sneak Attacks 45 | . . 12 2 7 . 5 3 . . . . 1 . . . . 1 3 7 3 . 1 Combat Hostiles 3 | . . . . 1 . 2 . . . . . . . . . . . . . . . . Follow-up Attacks 9 | . . 3 2 4 . . . . . . . . . . . . . . . . . . Damage Inflicted 19540 | . 663 2007 745 3629 . 485 378 147 . . . 74 . 88 . 46 226 1413 3099 573 170 5797 Guns 2102 | . 524 217 . . . . . 77 . . . . . . . . . . . . . 1284 Cannons 1940 | . . . . . . . . . . . . . . . . . . . 350 . . 1590 Explosions 5886 | . 139 61 . 174 . . . 70 . . . . . . . . . 986 1835 214 170 2237 Melee 9612 | . . 1729 745 3455 . 485 378 . . . . 74 . 88 . 46 226 427 914 359 . 686 Ramming . | . . . . . . . . . . . . . . . . . . . . . . . Kinetic 2169 | . . . . . . . . . . . . . . . . . . . . . . 2169 Thermal 914 | . 364 149 . 174 . . . 70 . . . . . . . . . . 157 . . . Explosive 4630 | . . . . . . . . . . . . . . . . . . 986 1237 . 170 2237 Electromagnetic 1192 | . 299 129 . . . . . 77 . . . . . . . . . . 441 214 . 32 Impact 8926 | . . 1729 745 3455 . 485 378 . . . . 74 . 88 . 46 226 427 914 359 . . Slashing . | . . . . . . . . . . . . . . . . . . . . . . . Piercing 686 | . . . . . . . . . . . . . . . . . . . . . . 686 Entropic 1023 | . . . . . . . . . . . . . . . . . . . 350 . . 673 Highest Corruption 54 | . . 14 6 20 20 . . 1 1 1 . . . . . . . . 1 1 1 54 Average Corruption 16 | . . 13 6 13 20 . . 1 1 1 . . . . . . . . 1 1 1 31 Corruption Purged . | . . . . . . . . . . . . . . . . . . . . . . . Corruption Blocked 15 | . . . . . . . . . . . . . . . . . . 15 . . . . Effects 98 | . . 6 . 23 7 . . . . 1 . . . . . . . . 5 1 . 55 Message Errors 22 | . . . . 4 3 . . . . 1 . . . . . . . . . 1 . 13 Matter Fused 14 | . . . . 7 1 . . . . . . . . . . . . . 3 . . 3 Heat Flow Errors 9 | . . 1 . 3 1 . . . . . . . . . . . . . 1 . . 3 Energy Discharges 5 | . . 1 . . 1 . . . . . . . . . . . . . . . . 3 Parts Rejected 2 | . . . . 1 . . . . . . . . . . . . . . . . . 1 Data Loss (minor) 15 | . . . . 3 1 . . . . . . . . . . . . . 1 . . 10 Data Loss (major) 5 | . . 1 . 1 . . . . . . . . . . . . . . . . . 3 Alerts 2 | . . . . 1 . . . . . . . . . . . . . . . . . 1 Misdirections 13 | . . 3 . 3 . . . . . . . . . . . . . . . . . 7 Weapon Failures 11 | . . . . . . . . . . . . . . . . . . . . . . 11 Overload Shots . | . . . . . . . . . . . . . . . . . . . . . . . Overflow Damage 3786 | . 10 614 208 825 . 88 152 . . . . 50 . 69 . . 147 633 651 47 . 292 Projectiles 122 | . . . . . . . . . . . . . . . . . . . 98 . . 24 Explosions 973 | . 10 1 . 83 . . . . . . . . . . . . . 361 250 . . 268 Melee 2691 | . . 613 208 742 . 88 152 . . . . 50 . 69 . . 147 272 303 47 . . Knockbacks 31 | . . 7 1 12 . 2 . . . . . . . . . . . 3 . . . 6 Impact 25 | . . 7 1 12 . 2 . . . . . . . . . . . 3 . . . . Kinetic 6 | . . . . . . . . . . . . . . . . . . . . . . 6 Secondary . | . . . . . . . . . . . . . . . . . . . . . . . Self-Inflicted Damage 175 | . . . . 175 . . . . . . . . . . . . . . . . . . Shots 2 | . . . . 2 . . . . . . . . . . . . . . . . . . Rammed . | . . . . . . . . . . . . . . . . . . . . . . . Targets Rammed . | . . . . . . . . . . . . . . . . . . . . . . . Kicked . | . . . . . . . . . . . . . . . . . . . . . . . Crushed . | . . . . . . . . . . . . . . . . . . . . . . . Highest Temperature 414 | . 300 147 . 116 139 320 4 . . 414 266 342 211 235 265 154 245 155 300 . . 205 Average Temperature 80 | . 99 39 . 21 54 96 4 . . 98 102 94 67 71 85 46 65 56 100 . . 33 Received Heat Transfer 1860 | . 48 84 72 873 . 18 . . . 27 . . . . . . . 30 8 20 . 680 Effects 11 | . 1 . . . . 3 . . . 1 . 2 1 2 . . . . 1 . . . Energy Bleed 6 | . 1 . . . . . . . . 1 . . 1 2 . . . . 1 . . . Interference 5 | . . . . . . 3 . . . . . 2 . . . . . . . . . . Siege Activations 2 | . . . . . . . . . . . . . . . . . . . . . . 2 Total Turns 162 | . . . . . . . . . . . . . . . . . . . . . . 162 Longest Duration 136 | . . . . . . . . . . . . . . . . . . . . . . 136 Robots Corrupted 1 | . . . . . . . . . . . . . . . . . . . 1 . . . Combat Hostiles . | . . . . . . . . . . . . . . . . . . . . . . . Parts Fried 73 | . . 14 13 16 . 3 . . . . . 1 . . . . 7 6 11 2 . . Impact Corruptions 93 | . . 28 7 33 . 4 4 . . . . 1 . 2 . . 2 5 6 1 . . Robots Melted 1 | . 1 . . . . . . . . . . . . . . . . . . . . . Combat Hostiles . | . . . . . . . . . . . . . . . . . . . . . . . Parts Melted 4 | . 1 1 . 1 . . . 1 . . . . . . . . . . . . . . Heat Transferred 1895 | . 1236 309 . 150 . . . 100 . . . . . . . . . . 100 . . . Parts Sabotaged . | . . . . . . . . . . . . . . . . . . . . . . . Parts Stolen . | . . . . . . . . . . . . . . . . . . . . . . . Parts Stripped . | . . . . . . . . . . . . . . . . . . . . . . . Power Chain Reactions 5 | . 2 1 . . . . . 1 . . . . . . . . . . 1 . . . Missiles Intercepted . | . . . . . . . . . . . . . . . . . . . . . . . Alert | -11 -10 -9 -8 -7 -7 -6 -5 -5 -5 -5 -4 -4 -4 -4 -4 -3 -3 -3 -2 -2 -1 -1 ------- Run | Scr Mat Mat Mat Fac Low Fac Fac Upp Upp War Pro Fac Upp Upp Zhi Pro Res Tes Res Qua Acc Com Peak Influence 857 | . 201 473 254 377 . 302 334 . . . . 90 . . . . 218 857 768 665 837 707 Initial 535 | . . 84 159 78 . 163 30 . . . . . . . . . 23 47 435 353 398 535 Average 309 | . 93 318 169 198 . 222 130 . . . . 51 . . . . 127 579 640 503 613 361 Maximum Alert Level 3 | . 1 2 1 1 . 1 1 . . . . . . . . . 1 3 3 2 3 3 Low Security (%) 44 | 100 93 12 69 49 . 29 79 . . . . 100 . . . . 86 7 . . . 82 Level 1 31 | . 6 74 30 50 . 70 20 . . . . . . . . . 13 10 1 17 3 . Level 2 16 | . . 12 . . . . . . . . . . . . . . . 42 47 82 78 14 Level 3 8 | . . . . . . . . . . . . . . . . . . 39 50 . 17 3 Level 4 . | . . . . . . . . . . . . . . . . . . . . . . . Level 5 . | . . . . . . . . . . . . . . . . . . . . . . . High Security . | . . . . . . . . . . . . . . . . . . . . . . . Max Security . | . . . . . . . . . . . . . . . . . . . . . . . Squads Dispatched 22 | . 2 3 . 2 . . 1 . . . . . . . . . . 6 1 2 3 2 Investigation 9 | . 1 . . . . . . . . . . . . . . . . 3 1 1 2 1 Extermination 1 | . . . . 1 . . . . . . . . . . . . . . . . . . Reinforcement 11 | . 1 3 . 1 . . 1 . . . . . . . . . . 2 . 1 1 1 Assault 1 | . . . . . . . . . . . . . . . . . . 1 . . . . Garrison . | . . . . . . . . . . . . . . . . . . . . . . . Intercept . | . . . . . . . . . . . . . . . . . . . . . . . Searches Triggered 1 | . . . . . . . . . . . . . . . . . . 1 . . . . Construction Impeded 1 | . . . . 1 . . . . . . . . . . . . . . . . . . Haulers Reinforced . | . . . . . . . . . . . . . . . . . . . . . . . Active Scanning Responses . | . . . . . . . . . . . . . . . . . . . . . . . Cargo Convoy Interrupts 1 | . . . . 1 . . . . . . . . . . . . . . . . . . Stealth | -11 -10 -9 -8 -7 -7 -6 -5 -5 -5 -5 -4 -4 -4 -4 -4 -3 -3 -3 -2 -2 -1 -1 --------- Run | Scr Mat Mat Mat Fac Low Fac Fac Upp Upp War Pro Fac Upp Upp Zhi Pro Res Tes Res Qua Acc Com Distress Signals 21 | . 1 4 1 . . . . . . . . . . . . . . . 7 1 2 5 Communications Jammed . | . . . . . . . . . . . . . . . . . . . . . . . Distress Signals . | . . . . . . . . . . . . . . . . . . . . . . . Times Spotted 303 | . 8 26 5 54 . 9 13 6 . 3 5 1 10 7 . 8 5 33 32 6 21 51 Peak Tracking Total 18 | . 4 4 3 18 . 4 7 6 . 3 5 1 9 4 . 5 4 11 8 5 15 9 Tactical Retreats 48 | . . 5 . 12 . 3 3 . . 1 . . 4 1 . 1 1 6 5 2 4 . Traps | -11 -10 -9 -8 -7 -7 -6 -5 -5 -5 -5 -4 -4 -4 -4 -4 -3 -3 -3 -2 -2 -1 -1 ------- Run | Scr Mat Mat Mat Fac Low Fac Fac Upp Upp War Pro Fac Upp Upp Zhi Pro Res Tes Res Qua Acc Com Traps Triggered 2 | . . . . . . 1 . . . . . . . . . . . . . . . 1 Indirectly . | . . . . . . . . . . . . . . . . . . . . . . . Trap Hack Attempts . | . . . . . . . . . . . . . . . . . . . . . . . Triggered . | . . . . . . . . . . . . . . . . . . . . . . . Disarmed . | . . . . . . . . . . . . . . . . . . . . . . . Reprogrammed . | . . . . . . . . . . . . . . . . . . . . . . . Reused . | . . . . . . . . . . . . . . . . . . . . . . . Traps Extracted . | . . . . . . . . . . . . . . . . . . . . . . . Installed . | . . . . . . . . . . . . . . . . . . . . . . . Triggered 7 | . . . . . . . . . . 7 . . . . . . . . . . . . Machines | -11 -10 -9 -8 -7 -7 -6 -5 -5 -5 -5 -4 -4 -4 -4 -4 -3 -3 -3 -2 -2 -1 -1 ---------- Run | Scr Mat Mat Mat Fac Low Fac Fac Upp Upp War Pro Fac Upp Upp Zhi Pro Res Tes Res Qua Acc Com Machines Disabled 27 | . . . . 4 . 1 1 . . . . . . 1 . . 1 11 2 5 . 1 Max in Single Turn 4 | . . . . 4 . 1 1 . . . . . . 1 . . 1 1 1 1 . 1 Garrison Access 4 | . . . . . . . . . . . . . . . . . 1 1 1 . 1 . Machines Sabotaged . | . . . . . . . . . . . . . . . . . . . . . . . Garrisons Compromised . | . . . . . . . . . . . . . . . . . . . . . . . Overloaded Fab Kills . | . . . . . . . . . . . . . . . . . . . . . . . Hacking | -11 -10 -9 -8 -7 -7 -6 -5 -5 -5 -5 -4 -4 -4 -4 -4 -3 -3 -3 -2 -2 -1 -1 --------- Run | Scr Mat Mat Mat Fac Low Fac Fac Upp Upp War Pro Fac Upp Upp Zhi Pro Res Tes Res Qua Acc Com Machines Accessed 67 | . . 1 1 1 . 3 7 . . 9 . 1 . . 9 . 5 12 4 3 8 3 Terminals 36 | . . 1 1 . . 2 3 . . . . 1 . . . . 4 10 3 3 5 3 Fabricators 5 | . . . . 1 . . 1 . . . . . . . . . . 1 1 . 1 . Repair Stations . | . . . . . . . . . . . . . . . . . . . . . . . Recycling Units . | . . . . . . . . . . . . . . . . . . . . . . . Scanalyzers 1 | . . . . . . . 1 . . . . . . . . . . . . . . . Garrison Access 7 | . . . . . . 1 2 . . . . . . . . . 1 1 . . 2 . Total Hacks 194 | . . 1 7 2 . 7 18 . . 15 . 5 . . 48 . 14 33 14 6 17 7 Successful 127 | . . 1 2 1 . 4 13 . . 15 . 2 . . 48 . 4 14 5 3 11 4 Failed 67 | . . . 5 1 . 3 5 . . . . 3 . . . . 10 19 9 3 6 3 Catastrophic 12 | . . . 1 . . 2 . . . . . . . . . . 1 5 1 1 . 1 Database Lockouts . | . . . . . . . . . . . . . . . . . . . . . . . Manual 43 | . . . 6 . . 4 10 . . . . 4 . . . . 6 4 5 1 3 . Terminals 100 | . . 1 7 . . 5 8 . . . . 5 . . . . 11 30 11 6 9 7 Fabricators 12 | . . . . 2 . . 2 . . . . . . . . . . 2 3 . 3 . Repair Stations . | . . . . . . . . . . . . . . . . . . . . . . . Recycling Units . | . . . . . . . . . . . . . . . . . . . . . . . Scanalyzers 3 | . . . . . . . 3 . . . . . . . . . . . . . . . Garrison Access 16 | . . . . . . 2 5 . . . . . . . . . 3 1 . . 5 . Terminal Hacks 102 | . . 1 2 . . 3 4 . . 15 . 1 . . 48 . 2 11 2 3 6 4 Record 54 | . . . . . . . . . . 13 . . . . 36 . . 3 . 1 1 . Part Schematic 7 | . . . . . . 1 . . . . . . . . 4 . . 2 . . . . Robot Analysis 4 | . . . . . . . . . . . . . . . 4 . . . . . . . Prototype ID Bank 4 | . . . . . . . . . . . . . . . 4 . . . . . . . Open Door 8 | . . . . . . . . . . 2 . . . . . . . 1 . . 4 1 Level Access Points 2 | . . . . . . . . . . . . . . . . . . 1 . . . 1 Branch Access Points 5 | . . 1 . . . . 1 . . . . . . . . . 1 1 . 1 . . Emergency Access Points 1 | . . . . . . . . . . . . . . . . . . . 1 . . . Machine Index 1 | . . . . . . . . . . . . . . . . . . . . . 1 . Terminal Index 2 | . . . . . . . . . . . . 1 . . . . . . . . . 1 Alert Level 5 | . . . 1 . . 1 1 . . . . . . . . . . 1 . . . 1 Unreport Threat 5 | . . . 1 . . 1 1 . . . . . . . . . 1 . 1 . . . Zone Layout 2 | . . . . . . . 1 . . . . . . . . . . . . 1 . . Protovariant Controls 2 | . . . . . . . . . . . . . . . . . . 2 . . . . Fabricator Hacks 5 | . . . . 1 . . 1 . . . . . . . . . . . 2 . 1 . Network Status 1 | . . . . 1 . . . . . . . . . . . . . . . . . . Load Schematic 2 | . . . . . . . . . . . . . . . . . . . 1 . 1 . Build 2 | . . . . . . . 1 . . . . . . . . . . . 1 . . . Repair Station Hacks . | . . . . . . . . . . . . . . . . . . . . . . . Recycling Unit Hacks . | . . . . . . . . . . . . . . . . . . . . . . . Scanalyzer 3 | . . . . . . . 3 . . . . . . . . . . . . . . . Insert Component 1 | . . . . . . . 1 . . . . . . . . . . . . . . . Analyze 2 | . . . . . . . 2 . . . . . . . . . . . . . . . Garrison Access Hacks 3 | . . . . . . . . . . . . . . . . . 1 1 . . 1 . Seal Access 3 | . . . . . . . . . . . . . . . . . 1 1 . . 1 . Unauthorized Hacks 14 | . . . . . . 1 5 . . . . 1 . . . . 1 2 1 . 3 . Terminals 8 | . . . . . . . 2 . . . . 1 . . . . 1 2 1 . 1 . Track 1 | . . . . . . . 1 . . . . . . . . . . . . . . . Assimilate 5 | . . . . . . . 1 . . . . 1 . . . . . 2 1 . . . Botnet 2 | . . . . . . . . . . . . . . . . . 1 . . . 1 . Fabricators . | . . . . . . . . . . . . . . . . . . . . . . . Repair Stations . | . . . . . . . . . . . . . . . . . . . . . . . Recycling Units . | . . . . . . . . . . . . . . . . . . . . . . . Scanalyzers . | . . . . . . . . . . . . . . . . . . . . . . . Garrison Access 6 | . . . . . . 1 3 . . . . . . . . . . . . . 2 . Broadcast 3 | . . . . . . 1 1 . . . . . . . . . . . . . 1 . Decoy 1 | . . . . . . . 1 . . . . . . . . . . . . . . . Redirect 1 | . . . . . . . . . . . . . . . . . . . . . 1 . Watchers 1 | . . . . . . . 1 . . . . . . . . . . . . . . . Data Cores Recovered 1 | . . . . . . 1 . . . . . . . . . . . . . . . . Used . | . . . . . . . . . . . . . . . . . . . . . . . Hacking Detections 40 | . . 1 1 1 . 2 7 . . . . 1 . . . . 5 9 4 2 5 2 Full Trace Events 8 | . . . . . . . . . . . . . . . . . . 3 1 1 2 1 Feedback Events 2 | . . . . . . . . . . . . . . . . . . . . . 2 . Hackware Fried 2 | . . . . . . . . . . . . . . . . . . . . . 2 . Feedback Blocked . | . . . . . . . . . . . . . . . . . . . . . . . Robot Schematics Acquired 5 | . . . . . . . . . . . . . . . . . . 2 . 3 . . Robots Built 3 | . . . . . . . 3 . . . . . . . . . . . . . . . Authchips . | . . . . . . . . . . . . . . . . . . . . . . . Time 50 | . . . . . . . 50 . . . . . . . . . . . . . . . Total Robot Build Rating 15 | . . . . . . . 15 . . . . . . . . . . . . . . . Part Schematics Acquired 14 | . . . . . . 1 1 . . . . . . . 4 . . 3 . 5 . . Parts Built . | . . . . . . . . . . . . . . . . . . . . . . . Authchips . | . . . . . . . . . . . . . . . . . . . . . . . Time 204 | . . . . . . . . . . . . . . . . . . . 204 . . . Total Part Build Rating . | . . . . . . . . . . . . . . . . . . . . . . . Parts Repaired . | . . . . . . . . . . . . . . . . . . . . . . . Time . | . . . . . . . . . . . . . . . . . . . . . . . Parts Recycled . | . . . . . . . . . . . . . . . . . . . . . . . Recycled Matter . | . . . . . . . . . . . . . . . . . . . . . . . Retrieved Matter . | . . . . . . . . . . . . . . . . . . . . . . . Retrieved Components . | . . . . . . . . . . . . . . . . . . . . . . . Parts Scanalyzed 1 | . . . . . . . 1 . . . . . . . . . . . . . . . Part Schematics Acquired 1 | . . . . . . . 1 . . . . . . . . . . . . . . . Parts Damaged . | . . . . . . . . . . . . . . . . . . . . . . . Bothacking | -11 -10 -9 -8 -7 -7 -6 -5 -5 -5 -5 -4 -4 -4 -4 -4 -3 -3 -3 -2 -2 -1 -1 ------------ Run | Scr Mat Mat Mat Fac Low Fac Fac Upp Upp War Pro Fac Upp Upp Zhi Pro Res Tes Res Qua Acc Com Used RIF Installer . | . . . . . . . . . . . . . . . . . . . . . . . Robots Hacked . | . . . . . . . . . . . . . . . . . . . . . . . Non-combat . | . . . . . . . . . . . . . . . . . . . . . . . Combat . | . . . . . . . . . . . . . . . . . . . . . . . Robot Hacks Applied . | . . . . . . . . . . . . . . . . . . . . . . . Relay Couplers Released 3 | . . . . . . . . . . . . . . . . . . . 3 . . . Machine Destruction 3 | . . . . . . . . . . . . . . . . . . . 3 . . . Fabnet Peak Effective % . | . . . . . . . . . . . . . . . . . . . . . . . Robots Rewired . | . . . . . . . . . . . . . . . . . . . . . . . Allies Hacked . | . . . . . . . . . . . . . . . . . . . . . . . Hacks Repelled . | . . . . . . . . . . . . . . . . . . . . . . . Allies | -11 -10 -9 -8 -7 -7 -6 -5 -5 -5 -5 -4 -4 -4 -4 -4 -3 -3 -3 -2 -2 -1 -1 -------- Run | Scr Mat Mat Mat Fac Low Fac Fac Upp Upp War Pro Fac Upp Upp Zhi Pro Res Tes Res Qua Acc Com Total Allies 11 | . . . . . 1 . 4 . . . . 1 . . . . . 1 1 . 3 . Largest Group 4 | . . . . . 1 . 4 . . . . 1 . . . . . 1 1 . 3 . Highest-Rated Group 374 | . . . . . 165 . 97 . . . . 10 . . . . . 45 26 . 374 . Highest-Rated Ally 165 | . . . . . 165 . 29 . . . . 10 . . . . . 45 26 . 131 . Total Orders . | . . . . . . . . . . . . . . . . . . . . . . . Ally Attacks 19 | . . . . . 1 . 15 . . . . . . . . . . . . . 3 . Total Damage 283 | . . . . . 6 . 244 . . . . . . . . . . . . . 33 . Kills 2 | . . . . . 1 . 1 . . . . . . . . . . . . . . . Allies Corrupted . | . . . . . . . . . . . . . . . . . . . . . . . Allies Melted 4 | . . . . . . . . . . . . . . . . . . . 1 . . 3 Intel | -11 -10 -9 -8 -7 -7 -6 -5 -5 -5 -5 -4 -4 -4 -4 -4 -3 -3 -3 -2 -2 -1 -1 ------- Run | Scr Mat Mat Mat Fac Low Fac Fac Upp Upp War Pro Fac Upp Upp Zhi Pro Res Tes Res Qua Acc Com Robot Analysis Total 4 | . . . . . . . . . . . . . . . 4 . . . . . . . Derelict Logs Recovered 7 | . . . . . 2 . . 1 2 . 1 . . 1 . . . . . . . . Drone Launches . | . . . . . . . . . . . . . . . . . . . . . . . Drone Recoveries . | . . . . . . . . . . . . . . . . . . . . . . . Exploration | -11 -10 -9 -8 -7 -7 -6 -5 -5 -5 -5 -4 -4 -4 -4 -4 -3 -3 -3 -2 -2 -1 -1 ------------- Run | Scr Mat Mat Mat Fac Low Fac Fac Upp Upp War Pro Fac Upp Upp Zhi Pro Res Tes Res Qua Acc Com Turns Passed 6278 | 47 259 704 243 971 140 411 281 114 54 298 141 74 117 115 48 224 127 332 471 189 126 792 Spaces Moved 12345 | 40 142 437 198 740 409 984 938 436 270 918 287 217 425 339 147 421 514 1042 1827 434 482 698 Core 12 | 4 . 4 . 1 . . . . . . . . . . . . . . . . . 3 Treads 354 | . . 45 1 101 . . . . . . . . . . . . . . . . . 207 Legs . | . . . . . . . . . . . . . . . . . . . . . . . Wheels 887 | 36 142 388 164 157 . . . . . . . . . . . . . . . . . . Hover 216 | . . . 30 186 . . . . . . . . . . . . . . . . . . Flight 10876 | . . . 3 295 409 984 938 436 270 918 287 217 425 339 147 421 514 1042 1827 434 482 488 Fastest Speed 10 | 50 100 80 80 23 23 18 21 17 20 10 10 10 10 10 10 10 10 10 11 17 17 14 Average Speed 26 | 95 100 101 83 66 25 20 21 21 20 17 10 10 10 10 10 10 10 14 16 17 17 56 Slowest Speed 225 | 100 100 160 160 160 26 26 21 27 20 20 10 10 10 10 10 11 11 86 19 17 17 225 Overloaded Moves . | . . . . . . . . . . . . . . . . . . . . . . . Propulsion Burnouts . | . . . . . . . . . . . . . . . . . . . . . . . Robots Hopped 54 | . . . . 3 . . 3 . . 4 . . . . . 3 . 18 17 1 . 5 Cave-ins Triggered . | . . . . . . . . . . . . . . . . . . . . . . . Teleports 1 | . . . . . . . . . . . . . . . . 1 . . . . . . Exploration Rate (%) 44 | 4 30 42 19 24 56 31 29 66 42 95 57 10 68 63 64 84 15 96 43 34 19 28 Regions Visited 22 Branch Regions 12 Pre-discovered Areas 7 | . . . . . 1 . . 1 2 . . . . . 3 . . . . . . . Known Exits Taken 10 | . 1 1 1 . . 1 1 . . . . . . . . . 1 1 1 1 1 . Unknown Exits Taken 12 | 1 . . . 1 1 . . 1 1 1 1 1 1 1 1 1 . . . . . . Scrap Searched 16 | . . . . . 2 . . 2 1 . 2 . 4 2 . 3 . . . . . . Spaces Dug 136 | . . 1 . 8 . 19 10 . . 3 1 5 4 5 . 3 18 20 10 10 11 8 Terrain Destroyed 202 | . 6 6 . 27 . 19 10 4 . 3 1 5 4 5 . 3 18 27 28 10 17 9 Melee 136 | . . 1 . 8 . 19 10 . . 3 1 5 4 5 . 3 18 20 10 10 11 8 Projectile 4 | . . . . . . . . . . . . . . . . . . . 3 . . 1 AOE 62 | . 6 5 . 19 . . . 4 . . . . . . . . . 7 15 . 6 . Terrain Rammed . | . . . . . . . . . . . . . . . . . . . . . . . Walls Destroyed . | . . . . . . . . . . . . . . . . . . . . . . . Machines Disabled . | . . . . . . . . . . . . . . . . . . . . . . . Actions | -11 -10 -9 -8 -7 -7 -6 -5 -5 -5 -5 -4 -4 -4 -4 -4 -3 -3 -3 -2 -2 -1 -1 --------- Run | Scr Mat Mat Mat Fac Low Fac Fac Upp Upp War Pro Fac Upp Upp Zhi Pro Res Tes Res Qua Acc Com Total 14421 | 45 200 583 245 1030 444 1140 983 451 269 1049 396 256 491 412 179 592 565 1155 1947 523 504 962 Wait 1236 | . 26 65 16 123 34 105 16 . . 93 109 31 59 67 20 165 28 36 65 44 2 132 Move 12225 | 39 141 436 197 733 408 983 931 435 269 910 286 216 424 338 146 415 513 1008 1798 431 481 687 Hop 43 | . . . . 3 . . 3 . . 3 . . . . . 2 . 15 11 1 . 5 Pick Up 47 | . 1 6 2 4 . 3 4 2 . 5 . . 1 . 2 1 . 4 1 3 . 8 Fast Attach 121 | 6 2 6 4 17 1 7 1 3 . 13 . . 1 . 5 . 1 13 12 10 4 15 Attach 42 | . . . 2 13 . 1 1 2 . 3 . 2 . . . 1 1 3 4 1 . 8 Detach 28 | . . . . 8 . 2 1 1 . 3 . . . . . . . 5 3 . 1 4 Swap 36 | . . 4 2 . 1 2 1 . . 1 . . 1 . . 2 . 7 7 2 1 5 Drop 85 | . 1 3 5 2 . 3 4 3 . 14 . . 1 . 6 1 . 14 10 9 1 8 Fire 130 | . 29 13 . . . . . 5 . 1 . . . . . . . 2 14 3 1 62 Melee 411 | . . 50 17 127 . 34 21 . . 3 1 7 4 7 . 5 22 42 22 19 13 17 Ram . | . . . . . . . . . . . . . . . . . . . . . . . Kick . | . . . . . . . . . . . . . . . . . . . . . . . Crush . | . . . . . . . . . . . . . . . . . . . . . . . Escape Stasis 17 | . . . . . . . . . . . . . . . . . . 6 . . . 11 Rewire . | . . . . . . . . . . . . . . . . . . . . . . . Trap . | . . . . . . . . . . . . . . . . . . . . . . . Miscellaneous . | . . . . . . . . . . . . . . . . . . . . . . . Route ------- -11/Scrapyard -10/Materials (discovered 2 exits: *Mat / [*Min]) -9/Materials (discovered 2 exits: *Mat / Min) -8/Materials -7/Factory -7/Lower Caves -6/Factory -5/Factory (discovered 2 exits: *Upp x2) -5/Upper Caves -5/Upper Caves -5/Warlord -4/Proximity Caves -4/Factory (discovered 2 exits: [*Upp x2]) -4/Upper Caves -4/Upper Caves -4/Zhirov -3/Proximity Caves -3/Research (discovered 3 exits: Arm / *Tes x2) -3/Testing -2/Research (discovered 3 exits: *Acc / *Qua x2) -2/Quarantine -1/Access (discovered 2 exits: Sur / *Com) -1/Command (discovered 2 exits: *Sur x2) To Epsilon Eridani History --------- Turn | Location | Event 22 | -11/Scrapyard | Discovered new exit (range 16) 48 | -11/Scrapyard | Entered Materials 175 | -10/Materials | Discovered new exit (range 16) 231 | -10/Materials | Discovered new exit (range 10) 302 | -10/Materials | Build established: Mutant 306 | -10/Materials | Identified exit to Materials 307 | -10/Materials | Entered another Materials area 307 | -9/Materials | Evolved 2 slots: Propulsion x2 462 | -9/Materials | Discovered new exit (range 5) 834 | -9/Materials | Lost 3 parts (1p2n) 927 | -9/Materials | Identified exit to Mines 954 | -9/Materials | System corruption reached 10% 1010 | -9/Materials | Identified exit to Materials 1011 | -9/Materials | Entered another Materials area 1011 | -8/Materials | Evolved 2 slots: Propulsion x2 1158 | -8/Materials | Build established: Scavenger-Mutant 1226 | -8/Materials | Discovered new exit (range 16) 1252 | -8/Materials | Identified exit to Factory 1254 | -8/Materials | Entered Factory 1254 | -7/Factory | Evolved 2 slots: Power x1, Propulsion x1 1544 | -7/Factory | Lost 11 parts (1p7n1u2w) 1746 | -7/Factory | System corruption reached 10% 1776 | -7/Factory | Lost 3 parts (1p2u) 2013 | -7/Factory | Core integrity fell below 50% 2071 | -7/Factory | Lost 4 parts (2n1u1w) 2097 | -7/Factory | Build established: Mutant 2197 | -7/Factory | Cargo convoy interrupted 2220 | -7/Factory | Discovered new exit (range 15) 2225 | -7/Factory | Entered Lower Caves 2234 | -7/Lower Caves | Learned location of Extension (-6) 2246 | -7/Lower Caves | Learned 8 Factory zone layouts 2248 | -7/Lower Caves | Encountered a Warlord checkpoint 2329 | -7/Lower Caves | ME-RLN showed up to help 2331 | -7/Lower Caves | ME-RLN revealed a hidden path 2365 | -7/Lower Caves | Entered Factory 2365 | -6/Factory | Evolved 2 slots: Power x1, Propulsion x1 2366 | -6/Factory | Identified exit to Factory 2776 | -6/Factory | Entered another Factory area 2776 | -5/Factory | Evolved 2 slots: Propulsion x2 2927 | -5/Factory | Fabricated G-50 Soldier? 2945 | -5/Factory | Spotted B-75 Beast 3033 | -5/Factory | Identified exit to Upper Caves 3057 | -5/Factory | Entered Upper Caves 3166 | -5/Upper Caves | Discovered new exit (range 11) 3169 | -5/Upper Caves | Learned location of Armory (-3) 3171 | -5/Upper Caves | Entered another Upper Caves area 3180 | -5/Upper Caves | Lost 3 parts (3n) 3183 | -5/Upper Caves | Encountered a Warlord checkpoint 3222 | -5/Upper Caves | Discovered new exit (range 7) 3225 | -5/Upper Caves | Entered Warlord 3232 | -5/Warlord | System corruption cleaned by Quarantine Array 3320 | -5/Warlord | Received a Watcher feed algorithm from an ecstatic Tinkerer 3335 | -5/Warlord | Met Warlord 3344 | -5/Warlord | Warlord's base attacked by MAIN.C 3354 | -5/Warlord | Found Prototype Reactor 3354 | -5/Warlord | Identified Vortex Chain Reactor 3358 | -5/Warlord | Found Prototype Processor 3358 | -5/Warlord | Identified Spectral Analyzer 3362 | -5/Warlord | Found Prototype Hackware 3362 | -5/Warlord | Identified Ghost Barrier 3444 | -5/Warlord | Found Prototype Energy Gun 3444 | -5/Warlord | Identified Vortex Rifle 3446 | -5/Warlord | Found Prototype Energy Cannon 3446 | -5/Warlord | Identified Vortex Driver 3510 | -5/Warlord | Opened side exit 3522 | -5/Warlord | Discovered new exit (range 14) 3523 | -5/Warlord | Entered Proximity Caves 3524 | -4/Proximity Caves | Learned 4 Research zone layouts 3543 | -4/Proximity Caves | Spotted B-86 Titan 3643 | -4/Proximity Caves | Discovered new exit (range 14) 3664 | -4/Proximity Caves | Entered Factory 3664 | -4/Factory | Evolved 2 slots: Utility x2 3735 | -4/Factory | Discovered new exit (range 12) 3738 | -4/Factory | Discovered new exit (range 9) 3738 | -4/Factory | Entered Upper Caves 3810 | -4/Upper Caves | Attracted the attention of an 0b10 checkpoint 3850 | -4/Upper Caves | Discovered new exit (range 14) 3855 | -4/Upper Caves | Entered another Upper Caves area 3898 | -4/Upper Caves | Attacked by a delusional Derelict stockpiling parts 3929 | -4/Upper Caves | Learned Research terminal intel 3962 | -4/Upper Caves | Discovered new exit (range 12) 3970 | -4/Upper Caves | Entered Zhirov 3970 | -4/Zhirov | Discovered new exit (range 3) 3972 | -4/Zhirov | Met Zhirov 3975 | -4/Zhirov | Learned location of Quarantine (-2) 3975 | -4/Zhirov | Learned location of Testing (-3) 3975 | -4/Zhirov | Learned location of Command (-1) 3984 | -4/Zhirov | Zhirov requested help retrieving the SGEMP Prototype 3988 | -4/Zhirov | Found Alien Artifact 3988 | -4/Zhirov | Identified Integrated Dissipator 3988 | -4/Zhirov | Installed Integrated Dissipator, increased core heat dissipation (+20) 4008 | -4/Zhirov | Found Alien Artifact 4018 | -4/Zhirov | Entered Proximity Caves 4028 | -3/Proximity Caves | Build established: Generator-Sprinter 4070 | -3/Proximity Caves | Spotted B-86 Titan 4107 | -3/Proximity Caves | Identified Transdimensional Reconstructor 4107 | -3/Proximity Caves | Warped through subspace 4238 | -3/Proximity Caves | Discovered new exit (range 13) 4242 | -3/Proximity Caves | Entered Research 4242 | -3/Research | Evolved 2 slots: Propulsion x1, Utility x1 4244 | -3/Research | Loaded intel: 22 terminal locations 4291 | -3/Research | Discovered new exit (range 13) 4326 | -3/Research | Discovered new exit (range 12) 4357 | -3/Research | Identified exit to Armory 4357 | -3/Research | Identified exit to Testing 4369 | -3/Research | Entered Testing 4380 | -3/Testing | Found Prototype Launcher 4380 | -3/Testing | Identified Z-bomb Delivery System 4393 | -3/Testing | Identified exit to Research 4393 | -3/Testing | Protovariant out of control (PP-ZEISOTDZ2Q) 4393 | -3/Testing | Unleashed a protovariant (PP-ZEISOTDZ2Q) 4396 | -3/Testing | Scanned by Researcher 4409 | -3/Testing | Spotted PP-ZEISOTDZ2Q 4445 | -3/Testing | Found Prototype Energy Cannon 4445 | -3/Testing | Identified Hpw. Disruptor Cannon 4449 | -3/Testing | Found Prototype Launcher 4449 | -3/Testing | Identified Com. Tesla Bomb Launcher 4463 | -3/Testing | Spotted Investigator 4485 | -3/Testing | Found Prototype Protection 4486 | -3/Testing | Identified Med. Regenerative Plating 4493 | -3/Testing | Spotted Striker 4493 | -3/Testing | Spotted Striker 4539 | -3/Testing | Spotted Alpha 7 4541 | -3/Testing | Stole the SGEMP Prototype 4581 | -3/Testing | Lost 4 parts (4n) 4619 | -3/Testing | Search patrols dispatched 4624 | -3/Testing | Found Prototype Device 4624 | -3/Testing | Identified AEGIS Remote Shield 4701 | -3/Testing | Entered Research 4701 | -2/Research | Warlord forces began assault on 0b10 4701 | -2/Research | Evolved 2 slots: Utility x2 4767 | -2/Research | Spotted B-90 Cyclops 4789 | -2/Research | Discovered new exit (range 6) 4811 | -2/Research | Research machine network offline 4850 | -2/Research | Build established: Hacker-Sprinter 4880 | -2/Research | Discovered new exit (range 6) 4909 | -2/Research | Fabricated Nanosword? 4940 | -2/Research | Found Prototype Processor 4940 | -2/Research | Identified Exp. Core Analyzer 4983 | -2/Research | Met up with Warlord 5015 | -2/Research | Spotted B-90 Cyclops 5027 | -2/Research | Discovered new exit (range 15) 5042 | -2/Research | Identified exit to Quarantine 5099 | -2/Research | Identified exit to Access 5151 | -2/Research | Spotted Striker 5168 | -2/Research | Spotted Executioner 5169 | -2/Research | Spotted Executioner 5172 | -2/Research | Entered Quarantine 5179 | -2/Quarantine | Found Antimissile System 5193 | -2/Quarantine | Found Alien Artifact 5193 | -2/Quarantine | Identified Phase Armor 5223 | -2/Quarantine | Found Alien Artifact 5223 | -2/Quarantine | Identified Subatomic Replicator 5231 | -2/Quarantine | Used Subatomic Replicator to replicate Vortex Chain Reactor 5249 | -2/Quarantine | Found Alien Artifact 5249 | -2/Quarantine | Identified Phase Redirector 5268 | -2/Quarantine | Discovered exit to Access (range 13) 5351 | -2/Quarantine | Found Alien Artifact 5351 | -2/Quarantine | Identified Terrabomb 5351 | -2/Quarantine | Used Terrabomb 5361 | -2/Quarantine | Entered Access 5361 | -1/Access | Evolved 2 slots: Propulsion x1, Utility x1 5362 | -1/Access | Loaded intel: 114 machine locations 5362 | -1/Access | Loaded intel: 62 trap records 5362 | -1/Access | Identified exit to Surface 5362 | -1/Access | Discovered exit to Surface (range 95) 5362 | -1/Access | Identified exit to Command 5362 | -1/Access | Discovered exit to Command (range 197) 5362 | -1/Access | Delivered the SGEMP Prototype to Zhirov 5362 | -1/Access | Zhirov transferred Access data 5381 | -1/Access | Adv. Hacking Suite fried by hacking feedback 5381 | -1/Access | Hacking Suite fried by hacking feedback 5391 | -1/Access | Found Exp. Core Analyzer 5435 | -1/Access | Spotted B-99 Colossus 5439 | -1/Access | Found Enh. Force Lance 5468 | -1/Access | Spotted B-99 Colossus 5487 | -1/Access | Entered Command 5574 | -1/Command | Spotted M Guard 5574 | -1/Command | Spotted M Guard 5584 | -1/Command | Spotted Combat Programmer 5584 | -1/Command | Spotted Combat Programmer 5592 | -1/Command | Met MAIN.C 5593 | -1/Command | 0b10 Conduit disabled 5620 | -1/Command | System corruption reached 10% 5626 | -1/Command | Destroyed MAIN.C Shell 5629 | -1/Command | MAIN.C activated Command garrisons 5629 | -1/Command | Surrendered to MAIN.C 5629 | -1/Command | Loaded intel: 56 machine locations 5629 | -1/Command | Loaded intel: 103 trap records 5629 | -1/Command | Discovered exit to Surface (range 84) 5629 | -1/Command | Discovered exit to Surface (range 47) 5657 | -1/Command | Lost 10 parts (2p5n2u1w) 5733 | -1/Command | MAIN.C activated Command garrisons 5773 | -1/Command | Unknown forces attacked Command 5773 | -1/Command | Spotted EQ-006 5773 | -1/Command | Spotted EQ-001 5773 | -1/Command | Spotted EQ-005 5773 | -1/Command | Spotted EQ-000 5773 | -1/Command | Spotted EQ-003 5773 | -1/Command | Spotted EQ-002 5817 | -1/Command | System corruption reached 30% 5838 | -1/Command | Found Prototype Ballistic Gun 5839 | -1/Command | Identified Multirail 5846 | -1/Command | Spotted EQ-017 5868 | -1/Command | Spotted EQ-019 5870 | -1/Command | Spotted EQ-036 5873 | -1/Command | Spotted EQ-022 5875 | -1/Command | Spotted EQ-020 5876 | -1/Command | Spotted EQ-031 5895 | -1/Command | Destroyed EQ-020 5918 | -1/Command | Spotted EQ-018 5919 | -1/Command | Spotted EQ-021 5924 | -1/Command | Destroyed EQ-018 5927 | -1/Command | Destroyed EQ-021 5955 | -1/Command | Build established: Hacker-Mutant 5986 | -1/Command | Spotted EQ-038 5986 | -1/Command | Spotted EQ-039 5986 | -1/Command | Spotted EQ-057 6004 | -1/Command | Destroyed EQ-039 6059 | -1/Command | Spotted EQ-056 6059 | -1/Command | Spotted EQ-043 6096 | -1/Command | Spotted EQ-062 6096 | -1/Command | Spotted EQ-060 6096 | -1/Command | Spotted EQ-066 6096 | -1/Command | Spotted EQ-071 6115 | -1/Command | Spotted EQ-061 6122 | -1/Command | Spotted EQ-076 6122 | -1/Command | Destroyed EQ-060 6134 | -1/Command | Destroyed EQ-066 6140 | -1/Command | Spotted EQ-075 6150 | -1/Command | Spotted EQ-027 6152 | -1/Command | Lost 4 parts (2p2u) 6173 | -1/Command | Destroyed EQ-027 6189 | -1/Command | Spotted EQ-064 6194 | -1/Command | Spotted EQ-063 6206 | -1/Command | Spotted EQ-085 6206 | -1/Command | Spotted EQ-099 6206 | -1/Command | Spotted EQ-084 6217 | -1/Command | Spotted EQ-053 6223 | -1/Command | Spotted EQ-090 6240 | -1/Command | Spotted EQ-093 6240 | -1/Command | Spotted EQ-096 6241 | -1/Command | Spotted EQ-106 6242 | -1/Command | Core integrity fell below 50% 6243 | -1/Command | All MAIN.C guards destroyed 6251 | -1/Command | Spotted EQ-105 6256 | -1/Command | Core integrity fell below 20% 6279 | *** | Escaped! Last Messages --------------- 06241_ |CBFZCLJJAIPXRGOVYYIY1MB0%WWSD CECZKYX 06241_ AEGIS Remote Shield destroyed. 06241_ Penetrated by Slug. 06241_ EQ-053 knocked back. 06242_ Biometal Heavy Treads destroyed. 06243_ M Guard destroyed. 06244_ MAIN.C knocked back. 06245_ Electron Diverter destroyed. 06245_ Impulse Thruster destroyed. 06246_ The unstable cave ceiling collapses. 06246_ Hvy. Gauss Cannon destroyed. 06248_ Acquired 8 matter. 06248_ Slug penetrates Wall. 06248_ Terminal disabled. 06250_ Biometal Heavy Treads destroyed. 06252_ Knocked back. 06252_ Cld. Field Propulsion Drive destroyed. 06256_ Acquired 107 matter. 06257_ System corrupted: Component data lost. 06275_ System corrupted: Heat flow error (+206). Map ----- +----------------------------------------------------+ | ?????????????# "" [ # ######### #? | | ############## "T # "####### ## #### | | ! = ## "" # % %%% | | ! ## "" # | | "" ! ## # % %! | | """ ## # """" #### | | """ ########+"# """ % # ## | | "" + * """ ## | | # =%! """" % ### | | # ######## " ^ ###? | | # #??????# ! !# #?## | | ############# ######## "" = # #??? | | #???????????# # # """" """%=!# ^ #??? | | #???????????# # # """" T +^ #??? | | ######??????# # + """" """ # #??? | | # ######## # # """" "" # ! #??? | | + "T # # # #??? | | # "" # # # #??? | | # ######## ##+##### # #??? | | ## ##??????# #???# ###### ########??? | | ## #???????# #???# Q#????# #?????????? | | ## #???????# #???# #????# #?????????? | | ## #???????# #???# Q#????# #?????????? | | ?# #########+#######?# Q###??#! #?????????? | | ?# #""""""# #?# #??#% % #?????????? | | ?# + """# #?# @ ####/##########???????? | | ?# + """# #?# ## #???????? | | ?# + """# #?####### #???????? | | ?# #""""""# #???????# #???????? | | ?########### #???????# "" #???????? | | ???????????# #???????# """" #???????? | | ???????????# ######### = """" #???????? | | ???????????# + + "" #???????? | | ???????????################## #???????? | | ????????????????????????????# #???????? | | ????????????????????????????# #???????? | | ????????????????????????????# #???????? | | ????????????????????????????# #???????? | | ????????????????????????????##############???????? | | ?????????????????????????????????????????????????? | | ?????????????????????????????????????????????????? | | ?????????????????????????????????????????????????? | | ?????????????????????????????????????????????????? | | ?????????????????????????????????????????????????? | | ?????????????????????????????????????????????????? | | ?????????????????????????????????????????????????? | | ?????????????????????????????????????????????????? | | ?????????????????????????????????????????????????? | | ?????????????????????????????????????????????????? | | ?????????????????????????????????????????????????? | +----------------------------------------------------+ Best States ------------- Heat Dissipation 103 Energy Generation 75 Energy Capacity 790 Matter Stores 300 Matter Capacity 300 Sight Range 24 Robot Scan Range 15 Terrain Scan Density 10 Additional Mass Support 16 Armor Coverage 225 Weapon Shielding 90 Melee Speed Boost 20 Evasion (%) 79 Core Analysis 8 Recoil Reduction 8 Force Boost 20 Salvage Targeting 3 Offensive Hacking 48 Defensive Hacking 20 Item Schematics ----------------- Enh. Gauss Cannon | -6/Factory | Hacked Cld. Cesium-ion Thruster | -5/Factory | Scanalyzed Assault Drone Bay | -4/Zhirov | Free Exp. Heat Sink | -4/Zhirov | Free Exp. Optical Array | -4/Zhirov | Free Imp. Arc Thrower | -4/Zhirov | Free Lgt. Regenerative Plating | -3/Testing | Hacked Hvy. Regenerative Plating | -3/Testing | Hacked Nanosword | -3/Testing | Archive Quantum Shading Machine | -2/Quarantine | Archive Hvy. Dispersion Rifle | -2/Quarantine | Archive Adv. Gravity Neutralizer | -2/Quarantine | Archive Adv. Dynamic Insulation System | -2/Quarantine | Archive Diametric Drive | -2/Quarantine | Archive Robot Schematics ------------------ R-06 Scavenger | -3/Testing | Archive M-30 Cleanser | -3/Testing | Archive A-15 Conveyor | -2/Quarantine | Archive C-57 Dissector | -2/Quarantine | Archive A-27 Freighter | -2/Quarantine | Archive Fabricated ------------ G-50 Soldier | x3 | -5/Factory | Preloaded Alien Tech Used ----------------- Integrated Dissipator Transdimensional Reconstructor Phase Armor Subatomic Replicator Phase Redirector Terrabomb Achievements -------------- All-out Warlord Can't Touch This Hard Hitter Meet Your Maker Rampage Special Delivery Speed Demon Ultimate Loadout Challenges ------------ None Game ------ Seed EnhancedHybridSink Manual? 0 Play Time 02:53:46 Cumulative 214.6 hours Start 2022.10.04 @ 17:13:02 End 2022.10.04 @ 20:10:46 Sessions 1 Manual Loads 0 Difficulty Rogue Special Mode None Game No. 157 Rogue 154 Adventurer 3 Explorer 0 Win Type 0 Total 3 Types 2/0/1/0/0/0/0/0/0 Lore% 68 Gallery% 69 Achievement% 58 Wizard Run 0 Options --------- ASCII 0 Keyboard 0 Movement Numpad Keybinds 0 Fullscreen 1 Font 18/SmallcapsGlow Map View 76x50 Tactical HUD 1 Map Filters NONE Filters NONE Steam 1 RUN: 3c43529a-1c94-41ab-8dd0-997b3beb1db7